[Event "Int SVK-ch Open 2020"]
[Site "Drienica"]
[Date "2020.08.11"]
[Round "5.20"]
[White "Ihnat, Marek"]
[Black "Malinovsky, Jozef"]
[Result "0-1"]
[ECO "B90"]
[WhiteElo "1490"]
[BlackElo "1698"]
[Annotator "NA"]
[PlyCount "88"]
[EventDate "2020.08.07"]
[EventType "swiss"]
[EventCountry "SVK"]
[SourceTitle "playchess.com"]
[Source "ChessBase"]
[SourceQuality "1"]
[TimeControl "40/5400+30:1800+30"]

1. e4 {[%emt 0:00:00]} c5 {[%emt 0:00:15]} 2. Nf3 {[%emt 0:00:00]} d6 {[%emt 0:00:20]} 3. d4 {[%emt 0:00:00]} cxd4 {[%emt 0:00:13]} 4. Nxd4 {[%emt 0:00:08]} Nf6 {[%emt 0:00:02]} 5. Nc3 a6 6. Be3 {[%emt 0:01:05]} Nc6 {[%emt 0:01:21]} 7. f3 {[%emt 0:00:40]} e5 {[%emt 0:00:47]} 8. Nb3 {[%emt 0:00:07]} Qc7 {[%emt 0:00:24]} 9. g4 {[%emt 0:02:32]} b5 {[%emt 0:02:13]} 10. g5 {[%emt 0:00:23]} Nh5 {[%emt 0:03:44]} 11. Qd2 {[%emt 0:00:10]} Bb7 {[%emt 0:00:12]} 12. O-O-O {[%emt 0:02:16]} Na5 {[%emt 0:00:38]} 13. Kb1 {[%emt 0:08:27]} Nxb3 {[%emt 0:00:10]} 14. cxb3 {[%emt 0:00:26]} Bc6 {[%emt 0:05:29]} 15. Rc1 {[%emt 0:01:04]} Qb7 {[%emt 0:00:02]} 16. Rd1 {[%emt 0:02:21]} Be7 {[%emt 0:00:38]} 17. Rg1 {[%emt 0:08:50]} O-O {[%emt 0:03:02]} 18. Bh3 {[%emt 0:04:55]} g6 {[%emt 0:01:36]} 19. Bg4 {[%emt 0:01:41]} Ng7 {[%emt 0:00:13]} 20. Nd5 {[%emt 0:09:01]} Bxd5 {[%emt 0:06:22]} 21. Qxd5 {[%emt 0:00:23]} Qxd5 {[%emt 0:00:34]} 22. Rxd5 {[%emt 0:00:06]} Ne6 {[%emt 0:01:06]} 23. h4 {[%emt 0:03:06]} Rfb8 {[%emt 0:07:59]} 24. h5 {[%emt 0:10:33]} Rb7 {[%emt 0:05:54]} 25. hxg6 {[%emt 0:01:03]} hxg6 {[%emt 0:00:47]} 26. Rh1 {[%emt 0:05:14]} Kg7 {[%emt 0:12:52]} 27. Rd2 {[%emt 0:01:42]} Rbb8 {[%emt 0:03:08]} 28. Rdh2 {[%emt 0:04:33]} Rh8 {[%emt 0:02:05]} 29. Rxh8 {[%emt 0:01:21]} Rxh8 {[%emt 0:00:01]} 30. Rxh8 {[%emt 0:00:07]} Kxh8 {[%emt 0:00:08]} 31. Bxe6 {[%emt 0:00:05]} fxe6 32. Kc2 d5 {[%emt 0:01:48]} 33. exd5 {[%emt 0:02:49]} exd5 {[%emt 0:00:08]} 34. Kd3 {[%emt 0:05:27]} Bd6 {[%emt 0:00:40]} 35. Bd2 {[%emt 0:02:19]} Kg8 {[%emt 0:00:09]} 36. Ke3 {[%emt 0:08:28]} Kf7 {[%emt 0:00:21]} 37. b4 {[%emt 0:06:30]} Ke6 {[%emt 0:00:22]} 38. a3 {[%emt 0:04:05]} Bc7 {[%emt 0:01:35]} 39. Kf2 {[%emt 0:01:24]} Bb6+ {[%emt 0:01:19]} 40. Kg3 {[%emt 0:01:11]} Kf5 {[%emt 0:00:11]} 41. Kh4 {[%emt 0:01:51]} Bf2+ {[%emt 0:00:31]} 42. Kh3 {[%emt 0:00:13]} d4 {[%emt 0:00:57]} 43. b3 {[%emt 0:05:22]} Be3 {[%emt 0:00:13]} 44. Be1 {[%emt 0:01:47]} d3 {[%emt 0:00:22]} 0-1

[Event "Int SVK-ch Open 2020"]
[Site "Drienica"]
[Date "2020.08.13"]
[Round "5.21"]
[White "Demeter Peter"]
[Black "Zahradnik Vladimir"]
[Result "1-0"]
[ECO "A20"]
[WhiteElo "2139"]
[BlackElo "1874"]
[Annotator "ChessBase"]
[PlyCount "113"]
[EventDate "2020.08.07"]
[EventType "swiss"]
[EventCountry "SVK"]
[TimeControl "40/5400+30:1800+30"]

1. c4 {[%emt 0:00:00]} e5 {[%emt 0:00:00]} 2. d3 {[%emt 0:00:07]} h6 {[%emt 0:00:16]} 3. Nf3 {[%emt 0:00:10]} Nc6 {[%emt 0:00:13]} 4. g3 {[%emt 0:00:05]} Nf6 {[%emt 0:00:10]} 5. Bg2 {[%emt 0:00:05]} Bb4+ {[%emt 0:01:13]} 6. Nfd2 {[%emt 0:00:26]} d6 {[%emt 0:00:37]} 7. O-O {[%emt 0:00:10]} O-O {[%emt 0:00:13]} 8. a3 {[%emt 0:00:19]} Bc5 {[%emt 0:04:17]} 9. b4 {[%emt 0:06:18]} Bd4 {[%emt 0:00:25]} 10. Ra2 {[%emt 0:00:06]} a5 {[%emt 0:00:36]} 11. e3 {[%emt 0:04:32]} Bb6 {[%emt 0:00:15]} 12. b5 {[%emt 0:01:02]} Ne7 {[%emt 0:02:00]} 13. Nc3 {[%emt 0:01:29]} c6 {[%emt 0:00:58]} 14. Na4 {[%emt 0:04:52]} Bc7 {[%emt 0:04:59]} 15. Rb2 {[%emt 0:03:27]} cxb5 {[%emt 0:04:22]} 16. Rxb5 {[%emt 0:02:51]} Bd7 {[%emt 0:10:38]} 17. Rxb7 {[%emt 0:02:02]} Bc6 {[%emt 0:00:13]} 18. Bxc6 {[%emt 0:04:21]} Nxc6 {[%emt 0:00:06]} 19. Nc3 {[%emt 0:01:50]} Qc8 {[%emt 0:04:17]} 20. Rb5 {[%emt 0:03:27]} Qh3 {[%emt 0:02:14]} 21. Qf3 {[%emt 0:04:29]} e4 {[%emt 0:00:36]} 22. Ndxe4 {[%emt 0:02:47]} Nxe4 {[%emt 0:01:13]} 23. Nxe4 {[%emt 0:01:18]} Ne5 {[%emt 0:00:15]} 24. Qe2 {[%emt 0:00:48]} f5 {[%emt 0:02:16]} 25. Nc3 {[%emt 0:01:06]} f4 {[%emt 0:01:14]} 26. exf4 {[%emt 0:03:01]} Nc6 {[%emt 0:02:29]} 27. Qh5 {[%emt 0:05:52]} Qd7 {[%emt 0:01:13]} 28. Be3 {[%emt 0:01:18]} Rae8 {[%emt 0:01:16]} 29. Ne4 {[%emt 0:01:45]} Ne7 {[%emt 0:01:17]} 30. Nc3 {[%emt 0:02:37]} Nf5 {[%emt 0:02:34]} 31. Nd5 {[%emt 0:00:11]} Bd8 {[%emt 0:00:21]} 32. Rfb1 {[%emt 0:01:40]} Qe6 {[%emt 0:01:51]} 33. Rb7 {[%emt 0:01:40]} g6 {[%emt 0:00:27]} 34. Qf3 {[%emt 0:07:37]} h5 {[%emt 0:00:30]} 35. Nc7 {[%emt 0:11:32]} Bxc7 {[%emt 0:00:12]} 36. Rxc7 {[%emt 0:00:06]} Rf7 {[%emt 0:02:58]} 37. Rxf7 {[%emt 0:00:38]} Kxf7 {[%emt 0:00:55]} 38. Rb7+ {[%emt 0:00:45]} Re7 {[%emt 0:00:23]} 39. Rxe7+ {[%emt 0:00:47]} Qxe7 {[%emt 0:00:52]} 40. Qd5+ {[%emt 0:03:22]} Kg7 {[%emt 0:00:17]} 41. h4 {[%emt 0:36:07]} Kh7 {[%emt 0:30:25]} 42. Qe4 {[%emt 0:00:41]} Qd7 {[%emt 0:00:12]} 43. d4 {[%emt 0:01:35]} Qa4 {[%emt 0:00:19]} 44. Qd3 {[%emt 0:00:44]} Qc6 {[%emt 0:01:04]} 45. d5 {[%emt 0:00:45]} Qe8 {[%emt 0:02:27]} 46. c5 {[%emt 0:02:35]} dxc5 {[%emt 0:02:26]} 47. Bxc5 {[%emt 0:02:08]} Qd7 {[%emt 0:02:09]} 48. d6 {[%emt 0:01:03]} Kg8 {[%emt 0:02:27]} 49. Qd5+ {[%emt 0:01:11]} Kf8 {[%emt 0:00:26]} 50. Qa8+ {[%emt 0:01:18]} Kf7 {[%emt 0:00:28]} 51. Qxa5 {[%emt 0:00:56]} Ke6 {[%emt 0:03:34]} 52. Qe1+ {[%emt 0:00:32]} Kd5 {[%emt 0:00:11]} 53. Qe5+ {[%emt 0:00:10]} Kc6 {[%emt 0:00:13]} 54. Bb4 {[%emt 0:00:08]} Kb7 {[%emt 0:02:45]} 55. Qd5+ {[%emt 0:02:13]} Ka6 {[%emt 0:01:16]} 56. Qg8 {[%emt 0:01:27]} Nxh4 {[%emt 0:00:45]} 57. Qc4+ {[%emt 0:01:46]} 1-0

[Event "Int SVK-ch Open 2020"]
[Site "Drienica"]
[Date "2020.08.11"]
[Round "5.21"]
[White "Magda, Filip"]
[Black "Cisarik, Pavol"]
[Result "1-0"]
[ECO "C44"]
[WhiteElo "1266"]
[BlackElo "1646"]
[Annotator "NA RC"]
[PlyCount "129"]
[EventDate "2020.08.07"]
[EventType "swiss"]
[EventCountry "SVK"]
[SourceTitle "playchess.com"]
[Source "ChessBase"]
[SourceQuality "1"]
[TimeControl "40/5400+30:1800+30"]

1. e4 {[%emt 0:00:09]} e5 {[%emt 0:00:00]} 2. Nf3 {[%emt 0:01:06]} Nc6 {[%emt 0:00:00]} 3. d4 {[%emt 0:01:21]} exd4 {[%emt 0:00:12]} 4. Nxd4 {[%emt 0:00:08]} Nf6 {[%emt 0:00:07]} 5. Nxc6 {[%emt 0:01:38]} bxc6 {[%emt 0:00:04]} 6. Nc3 {[%emt 0:01:28]} Bb4 {[%emt 0:01:04]} 7. Qd3 {[%emt 0:01:06]} Qe7 {[%emt 0:02:47]} 8. Bd2 {[%emt 0:04:07]} O-O {[%emt 0:05:40]} 9. f3 {[%emt 0:06:04]} d5 {[%emt 0:03:06]} 10. Be2 {[%emt 0:06:58]} Bb7 {[%emt 0:07:21]} 11. exd5 {[%emt 0:02:57]} cxd5 {[%emt 0:00:14]} 12. O-O {[%emt 0:00:34]} c5 {[%emt 0:03:02]} 13. Bg5 {[%emt 0:06:41]} Bxc3 {[%emt 0:10:19]} 14. bxc3 {[%emt 0:00:55]} h6 {[%emt 0:03:39]} 15. Bh4 {[%emt 0:01:48]} Rfe8 {[%emt 0:00:40]} 16. Rfe1 {[%emt 0:02:26]} Qd6 {[%emt 0:08:29]} 17. Bg3 {[%emt 0:02:35]} Qc6 {[%emt 0:03:04]} 18. Qb5 {[%emt 0:02:22]} Re6 {[%emt 0:06:14]} 19. Rab1 {[%emt 0:03:33]} Qxb5 {[%emt 0:01:37]} 20. Bxb5 {[%emt 0:01:22]} Rc8 {[%emt 0:07:34]} 21. Rxe6 {[%emt 0:02:58]} fxe6 {[%emt 0:00:01]} 22. Be5 {[%emt 0:00:34]} Kf7 {[%emt 0:02:17]} 23. Bd7 {[%emt 0:05:40]} Nxd7 {[%emt 0:00:34]} 24. Rxb7 {[%emt 0:00:07]} Ke8 {[%emt 0:02:54]} 25. Bxg7 {[%emt 0:00:36]} h5 {[%emt 0:00:20]} 26. Rxa7 {[%emt 0:00:41]} Rb8 {[%emt 0:00:40]} 27. c4 {[%emt 0:12:09]} d4 {[%emt 0:00:34]} 28. Bh6 {[%emt 0:07:00]} Rb2 {[%emt 0:00:41]} 29. Ra8+ {[%emt 0:01:17]} Ke7 {[%emt 0:00:54]} 30. Bg5+ {[%emt 0:01:00]} Kd6 {[%emt 0:00:57]} 31. Bf4+ {[%emt 0:01:38]} e5 {[%emt 0:01:20]} 32. Ra6+ {[%emt 0:01:51]} Kc7 {[%emt 0:04:31]} 33. Ra7+ {[%emt 0:01:35]} Kc8 {[%emt 0:00:52]} 34. Bg5 {[%emt 0:02:58]} Rxc2 {[%emt 0:00:49]} 35. Ra8+ {[%emt 0:01:35]} Kb7 {[%emt 0:01:33]} 36. Rd8 {[%emt 0:00:45]} Kc7 {[%emt 0:01:18]} 37. Ra8 {[%emt 0:03:44]} Kb7 {[%emt 0:01:06]} 38. Rd8 {[%emt 0:00:36]} Nb6 {[%emt 0:01:23]} 39. Be7 {[%emt 0:01:45]} Rxc4 {[%emt 0:01:25]} 40. Bf6 {[%emt 0:00:00]} Ra4 {[%emt 0:00:00]} 41. Bxe5 {[%emt 0:04:04]} Rxa2 {[%emt 0:02:25]} 42. Kf1 {[%emt 0:01:21]} Nc4 {[%emt 0:01:26]} 43. Bf4 {[%emt 0:01:21]} Kc6 {[%emt 0:09:53]} 44. g4 {[%emt 0:01:14]} hxg4 {[%emt 0:00:38]} 45. fxg4 {[%emt 0:00:12]} Nb6 {[%emt 0:02:20]} 46. g5 {[%emt 0:01:10]} Nd5 {[%emt 0:00:35]} 47. Rd6+ {[%emt 0:00:19]} Kb5 {[%emt 0:00:36]} 48. Rxd5 {[%emt 0:00:26]} Kc4 {[%emt 0:00:01]} 49. Rd8 {[%emt 0:00:49]} Kd3 {[%emt 0:00:26]} 50. g6 {[%emt 0:01:30]} Ke4 {[%emt 0:00:02]} 51. Rf8 {[%emt 0:02:06]} Ra7 {[%emt 0:01:28]} 52. Rf7 {[%emt 0:00:50]} Ra1+ {[%emt 0:00:23]} 53. Kg2 {[%emt 0:01:24]} Ra2+ {[%emt 0:00:39]} 54. Kh3 {[%emt 0:00:47]} Ra8 {[%emt 0:00:52]} 55. g7 {[%emt 0:01:56]} Rg8 {[%emt 0:00:06]} 56. Bh6 {[%emt 0:00:13]} d3 {[%emt 0:00:37]} 57. Rf4+ {[%emt 0:02:10]} Ke5 {[%emt 0:00:33]} 58. Rf8 {[%emt 0:01:17]} Rxg7 {[%emt 0:00:16]} 59. Bxg7+ {[%emt 0:00:11]} Ke4 {[%emt 0:00:18]} 60. Rd8 {[%emt 0:00:36]} Ke3 {[%emt 0:00:21]} 61. Kg4 {[%emt 0:00:39]} c4 {[%emt 0:00:14]} 62. h4 {[%emt 0:00:48]} Ke2 {[%emt 0:00:22]} 63. h5 {[%emt 0:00:18]} d2 {[%emt 0:00:18]} 64. Rxd2+ {[%emt 0:00:15]} Kxd2 {[%emt 0:00:02]} 65. h6 {[%emt 0:00:16]} 1-0

[Event "Int SVK-ch Open 2020"]
[Site "Drienica"]
[Date "2020.08.11"]
[Round "5.22"]
[White "Sevcik, Lubomir"]
[Black "Horbalova, Ivana"]
[Result "1-0"]
[ECO "A04"]
[WhiteElo "1748"]
[BlackElo "1311"]
[Annotator "NA"]
[PlyCount "75"]
[EventDate "2020.08.07"]
[EventType "swiss"]
[EventCountry "SVK"]
[SourceTitle "playchess.com"]
[Source "ChessBase"]
[SourceQuality "1"]
[TimeControl "40/5400+30:1800+30"]

1. Nf3 f5 2. d4 e6 3. Bg5 Be7 4. Bxe7 Nxe7 5. e3 b6 6. Ne5 Ba6 7. Qf3 d5 8. Qh5+ g6 9. Qh6 Rf8 10. Bxa6 Nxa6 11. Qxh7 Nb4 12. Na3 Qd6 13. c3 O-O-O 14. Nf7 Rxf7 15. Qxf7 Nd3+ 16. Ke2 Nxb2 17. Nc2 Qd7 18. Kf3 Nc4 19. g3 Nd6 20. Qh7 Ne4 21. Kg2 Nxc3 22. Ne1 Ne4 23. Nf3 Re8 24. Rhc1 Qb5 25. Rc2 g5 26. Qf7 Nd6 27. Qxe6+ Kb7 28. Rac1 Nc4 29. Ne5 Nc8 30. Qf7 N8d6 31. Qh5 f4 32. Qxg5 fxe3 33. fxe3 Ne4 34. Qf4 Qa4 35. Nxc4 dxc4 36. Rxc4 Qxa2+ 37. R1c2 Qb3 38. Qxc7+ 1-0

[Event "Int SVK-ch Open 2020"]
[Site "Drienica"]
[Date "2020.08.11"]
[Round "5.23"]
[White "Andras, Anton"]
[Black "Tomcik, Milan"]
[Result "0-1"]
[ECO "A45"]
[WhiteElo "1584"]
[BlackElo "1963"]
[Annotator "ChessBase"]
[PlyCount "46"]
[EventDate "2020.08.07"]
[EventType "swiss"]
[EventCountry "SVK"]
[SourceTitle "playchess.com"]
[Source "ChessBase"]
[SourceQuality "1"]
[TimeControl "40/5400+30:1800+30"]

1. d4 Nf6 2. Bf4 d6 3. Nf3 g6 4. c3 Bg7 5. Nbd2 O-O 6. h3 Nbd7 7. e3 Re8 8. Be2 e5 9. Bg5 h6 10. Bh4 c5 11. Ne4 Qc7 12. Nxf6+ Nxf6 13. O-O Bf5 14. Re1 a6 15. Bg3 Nh7 16. Qd2 Rad8 17. Rad1 Qe7 18. Bc4 e4 19. Nh2 h5 20. Nf1 h4 21. Bh2 Ng5 22. Bf4 Bxh3 23. gxh3 Nf3+ 0-1

[Event "Int SVK-ch Open 2020"]
[Site "Drienica"]
[Date "2020.08.13"]
[Round "5.24"]
[White "Varga, Lukas"]
[Black "Sosovickova Jana"]
[Result "1-0"]
[ECO "C78"]
[WhiteElo "2000"]
[BlackElo "1829"]
[Annotator "ChessBase"]
[PlyCount "111"]
[EventDate "2020.08.07"]
[EventType "swiss"]
[EventCountry "SVK"]
[TimeControl "40/5400+30:1800+30"]

1. e4 {[%emt 0:00:00]} e5 {[%emt 0:02:01]} 2. Nf3 {[%emt 0:00:00]} Nc6 {[%emt 0:00:09]} 3. Bb5 {[%emt 0:00:00]} a6 {[%emt 0:00:28]} 4. Ba4 {[%emt 0:00:00]} Nf6 {[%emt 0:00:43]} 5. O-O {[%emt 0:00:04]} b5 {[%emt 0:00:59]} 6. Bb3 {[%emt 0:00:06]} Bc5 {[%emt 0:01:10]} 7. Nxe5 {[%emt 0:01:36]} Nxe5 {[%emt 0:09:18]} 8. d4 {[%emt 0:00:06]} Bxd4 {[%emt 0:04:35]} 9. Qxd4 {[%emt 0:00:08]} Qe7 {[%emt 0:01:49]} 10. f4 {[%emt 0:13:01]} Nc6 {[%emt 0:05:16]} 11. Qe3 {[%emt 0:02:19]} O-O {[%emt 0:10:31]} 12. e5 {[%emt 0:01:35]} Ng4 {[%emt 0:07:18]} 13. Qf3 {[%emt 0:01:18]} Nh6 {[%emt 0:08:00]} 14. f5 {[%emt 0:02:37]} Qxe5 {[%emt 0:06:49]} 15. f6 {[%emt 0:00:14]} Kh8 {[%emt 0:08:53]} 16. Nc3 {[%emt 0:01:27]} Ng8 {[%emt 0:04:41]} 17. fxg7+ {[%emt 0:01:17]} Qxg7 {[%emt 0:01:08]} 18. Ne4 {[%emt 0:06:16]} Nd4 {[%emt 0:04:18]} 19. Qf2 {[%emt 0:04:58]} Nxb3 {[%emt 0:02:56]} 20. axb3 {[%emt 0:00:08]} d6 {[%emt 0:01:54]} 21. Bd2 {[%emt 0:00:21]} Qg6 {[%emt 0:06:29]} 22. Nf6 {[%emt 0:05:08]} Nxf6 {[%emt 0:02:39]} 23. Bc3 {[%emt 0:00:34]} Bb7 {[%emt 0:02:41]} 24. Bxf6+ {[%emt 0:00:13]} Kg8 {[%emt 0:00:16]} 25. b4 {[%emt 0:00:50]} Rae8 {[%emt 0:01:59]} 26. Ra3 {[%emt 0:00:30]} Re4 {[%emt 0:03:11]} 27. h3 {[%emt 0:00:07]} Rfe8 {[%emt 0:01:23]} 28. Rg3 {[%emt 0:01:08]} Re2 {[%emt 0:00:37]} 29. Rxg6+ {[%emt 0:00:09]} hxg6 {[%emt 0:00:39]} 30. Qg3 {[%emt 0:00:16]} Rxg2+ {[%emt 0:00:49]} 31. Qxg2 {[%emt 0:00:06]} Bxg2 {[%emt 0:00:27]} 32. Kxg2 {[%emt 0:00:00]} Re2+ {[%emt 0:01:03]} 33. Rf2 {[%emt 0:00:16]} Re4 {[%emt 0:00:30]} 34. c3 {[%emt 0:00:40]} c5 {[%emt 0:00:24]} 35. bxc5 {[%emt 0:00:06]} dxc5 {[%emt 0:00:21]} 36. Rd2 {[%emt 0:00:07]} Re8 {[%emt 0:00:30]} 37. Rd8 {[%emt 0:00:30]} Kf8 {[%emt 0:00:30]} 38. Kf3 {[%emt 0:00:30]} Rxd8 {[%emt 0:00:30]} 39. Bxd8 {[%emt 0:00:30]} Ke8 {[%emt 0:00:30]} 40. Bb6 {[%emt 0:00:30]} c4 {[%emt 0:00:30]} 41. Ke4 {[%emt 0:30:04]} Kd7 {[%emt 0:31:01]} 42. Kd5 {[%emt 0:00:20]} g5 {[%emt 0:00:00]} 43. Ke5 {[%emt 0:00:00]} Ke7 {[%emt 0:00:00]} 44. Kf5 {[%emt 0:00:00]} f6 {[%emt 0:00:00]} 45. Bd4 {[%emt 0:00:00]} a5 {[%emt 0:00:00]} 46. Bxf6+ {[%emt 0:00:00]} Kd6 {[%emt 0:00:00]} 47. Bd8 {[%emt 0:00:00]} b4 {[%emt 0:00:00]} 48. Bxa5 {[%emt 0:00:00]} b3 {[%emt 0:00:00]} 49. Ke4 {[%emt 0:00:00]} Kc5 {[%emt 0:00:00]} 50. Bb4+ {[%emt 0:00:00]} Kb5 {[%emt 0:00:00]} 51. Kd5 {[%emt 0:00:00]} Ka4 {[%emt 0:00:00]} 52. Kxc4 {[%emt 0:00:00]} g4 {[%emt 0:00:00]} 53. h4 {[%emt 0:00:00]} g3 {[%emt 0:00:00]} 54. h5 {[%emt 0:00:00]} g2 {[%emt 0:00:00]} 55. Bc5 {[%emt 0:00:00]} Ka5 {[%emt 0:00:00]} 56. h6 {[%emt 0:00:00]} 1-0

[Event "Int SVK-ch Open 2020"]
[Site "Drienica"]
[Date "2020.08.11"]
[Round "5.25"]
[White "Kapolkova, Greta"]
[Black "Magda, Juraj"]
[Result "1-0"]
[ECO "B32"]
[WhiteElo "1545"]
[BlackElo "1261"]
[Annotator "NA"]
[PlyCount "37"]
[EventDate "2020.08.07"]
[EventType "swiss"]
[EventCountry "SVK"]
[SourceTitle "playchess.com"]
[Source "ChessBase"]
[SourceQuality "1"]
[TimeControl "40/5400+30:1800+30"]

1. e4 {[%emt 0:00:00]} c5 {[%emt 0:00:00]} 2. Nf3 {[%emt 0:00:00]} Nc6 {[%emt 0:00:00]} 3. d4 {[%emt 0:00:12]} cxd4 {[%emt 0:00:00]} 4. Nxd4 {[%emt 0:00:10]} g6 {[%emt 0:00:06]} 5. Be2 {[%emt 0:00:57]} Bg7 {[%emt 0:00:12]} 6. Nb3 {[%emt 0:00:14]} d6 {[%emt 0:01:18]} 7. O-O {[%emt 0:01:12]} Nf6 {[%emt 0:06:32]} 8. Nc3 {[%emt 0:00:12]} O-O {[%emt 0:00:37]} 9. Bg5 {[%emt 0:00:33]} Bd7 {[%emt 0:02:52]} 10. f4 {[%emt 0:01:02]} Qb6+ {[%emt 0:02:40]} 11. Kh1 {[%emt 0:00:19]} Be6 {[%emt 0:08:32]} 12. Bf3 {[%emt 0:01:13]} Bxb3 {[%emt 0:02:34]} 13. axb3 {[%emt 0:00:16]} Nd4 {[%emt 0:02:41]} 14. Na4 {[%emt 0:01:10]} Qb4 {[%emt 0:05:17]} 15. c3 {[%emt 0:03:54]} Qxb3 {[%emt 0:00:35]} 16. cxd4 {[%emt 0:00:34]} Qb4 {[%emt 0:03:47]} 17. Qd3 {[%emt 0:01:31]} h6 {[%emt 0:07:59]} 18. Bh4 {[%emt 0:00:39]} e6 {[%emt 0:01:09]} 19. Be1 {[%emt 0:00:25]} 1-0

[Event "Int SVK-ch Open 2020"]
[Site "Drienica"]
[Date "2020.08.12"]
[Round "6.2"]
[White "Tomcik, Milan"]
[Black "Tomcikova, Zuzana"]
[Result "1/2-1/2"]
[ECO "A05"]
[WhiteElo "1963"]
[BlackElo "1776"]
[Annotator "ChessBase"]
[PlyCount "36"]
[EventDate "2020.08.07"]
[EventType "swiss"]
[EventCountry "SVK"]
[SourceTitle "playchess.com"]
[Source "ChessBase"]
[SourceQuality "1"]
[TimeControl "40/5400+30:1800+30"]

1. Nf3 {[%emt 0:01:00]} Nf6 {[%emt 0:00:00]} 2. g3 {[%emt 0:00:07]} e6 {[%emt 0:00:34]} 3. Bg2 {[%emt 0:00:07]} d5 {[%emt 0:00:35]} 4. d3 {[%emt 0:00:24]} c5 {[%emt 0:01:45]} 5. O-O {[%emt 0:00:26]} Nc6 {[%emt 0:01:14]} 6. Nbd2 {[%emt 0:00:21]} Be7 {[%emt 0:01:30]} 7. e4 {[%emt 0:01:52]} Qc7 {[%emt 0:03:29]} 8. c3 {[%emt 0:01:53]} O-O {[%emt 0:00:46]} 9. Qe2 {[%emt 0:00:44]} dxe4 {[%emt 0:04:24]} 10. dxe4 {[%emt 0:00:51]} b6 {[%emt 0:04:00]} 11. Re1 {[%emt 0:05:42]} Bb7 {[%emt 0:00:59]} 12. e5 {[%emt 0:01:36]} Nd5 {[%emt 0:02:40]} 13. Nf1 {[%emt 0:03:38]} Rfd8 {[%emt 0:04:21]} 14. h4 {[%emt 0:09:05]} Na5 {[%emt 0:19:45]} 15. N1h2 {[%emt 0:00:58]} c4 {[%emt 0:00:28]} 16. Nd4 {[%emt 0:03:24]} a6 {[%emt 0:12:19]} 17. Be4 {[%emt 0:08:26]} b5 {[%emt 0:03:42]} 18. Qg4 {[%emt 0:08:00]} Nc6 1/2-1/2

[Event "Int SVK-ch Open 2020"]
[Site "Drienica"]
[Date "2020.08.13"]
[Round "6.3"]
[White "Manik, Mikulas"]
[Black "Lehocz, Jozsef"]
[Result "1-0"]
[ECO "B03"]
[WhiteElo "2366"]
[BlackElo "1959"]
[Annotator "ChessBase"]
[PlyCount "51"]
[EventDate "2020.08.07"]
[EventType "swiss"]
[EventCountry "SVK"]
[TimeControl "40/5400+30:1800+30"]

1. e4 {[%emt 0:00:00]} Nf6 {[%emt 0:00:00]} 2. e5 {[%emt 0:00:00]} Nd5 {[%emt 0:00:00]} 3. d4 {[%emt 0:00:00]} Nb6 {[%emt 0:00:00]} 4. Nf3 {[%emt 0:01:06]} d5 {[%emt 0:00:00]} 5. a4 {[%emt 0:04:03]} Bg4 {[%emt 0:05:46]} 6. Be2 {[%emt 0:05:31]} e6 {[%emt 0:00:46]} 7. Ng5 {[%emt 0:00:46]} Bxe2 {[%emt 0:08:12]} 8. Qxe2 {[%emt 0:00:03]} Be7 {[%emt 0:08:41]} 9. Qh5 {[%emt 0:00:21]} Bxg5 {[%emt 0:00:17]} 10. Bxg5 {[%emt 0:00:03]} Qd7 {[%emt 0:00:08]} 11. O-O {[%emt 0:02:23]} Nc6 {[%emt 0:01:43]} 12. c3 {[%emt 0:11:10]} Na5 {[%emt 0:06:45]} 13. Nd2 {[%emt 0:04:53]} Nbc4 {[%emt 0:14:28]} 14. Nxc4 {[%emt 0:00:21]} dxc4 {[%emt 0:00:12]} 15. f4 {[%emt 0:01:17]} h6 {[%emt 0:10:42]} 16. f5 {[%emt 0:01:38]} Rf8 {[%emt 0:00:29]} 17. Bh4 {[%emt 0:04:03]} c6 {[%emt 0:01:36]} 18. Rf2 {[%emt 0:06:07]} Rc8 {[%emt 0:14:02]} 19. Raf1 {[%emt 0:00:31]} c5 {[%emt 0:05:00]} 20. fxe6 {[%emt 0:02:19]} Qxe6 {[%emt 0:00:25]} 21. d5 {[%emt 0:00:19]} Qxd5 {[%emt 0:00:29]} 22. Rd1 {[%emt 0:00:09]} Qe4 {[%emt 0:00:39]} 23. e6 {[%emt 0:00:17]} g6 {[%emt 0:01:10]} 24. Qxc5 {[%emt 0:00:37]} Nc6 {[%emt 0:05:21]} 25. e7 {[%emt 0:00:11]} Rg8 {[%emt 0:00:35]} 26. Qxc6+ {[%emt 0:00:05]} 1-0